fUST/lending_fUST_20250424
["ID","MTS","AMOUNT","RATE_DAILY","PERIOD"]
[358816011,1745461832534,-651.706683,0.00020053,2]
[358816013,1745461832544,-6038.49907287,0.00020061,2]
[358816129,1745461838160,-18861.50092713,0.00020061,2]
[358816130,1745461838170,-622.41248876,0.0002061,2]
[358816131,1745461838180,-642.22603028,0.00020693,2]
[358816132,1745461838190,-500.0,0.00020999,2]
[358816133,1745461838200,-623.91292404,0.00020999,2]
[358816134,1745461838209,-508.06626834,0.00021,2]
[358816135,1745461838219,-500.0,0.00021,2]
[358816136,1745461838228,-663.81198675,0.00021,2]
[358816137,1745461838238,-500.0,0.00021,2]
[358816138,1745461838248,-500.0,0.00021,2]
[358816139,1745461838258,-500.0,0.00021,2]
[358816140,1745461838268,-500.0,0.00021,2]
[358816141,1745461838277,-528.22069319,0.00021,2]
[358816142,1745461838287,-500.99364909,0.00021,2]
[358816143,1745461838296,-937.39165384,0.00021,2]
[358816144,1745461838305,-500.0,0.00021,2]
[358816145,1745461838315,-500.0,0.00021,2]
[358816146,1745461838324,-500.0,0.00021,2]
[358816147,1745461838333,-500.0,0.00021,2]
[358816148,1745461838343,-500.0,0.00021,2]
[358816150,1745461838352,-500.0,0.00021,2]
[358816151,1745461838361,-500.0,0.00021,2]
[358816152,1745461838374,-500.0,0.00021,2]
[358816154,1745461838383,-851.65135693,0.00021,2]
[358816155,1745461838393,-174.7929466,0.00021116,2]
[358816157,1745461838402,-174.7929468,0.00021478,2]
[358816159,1745461838413,-174.7929466,0.00021478,2]
[358816162,1745461838423,-642.22603028,0.00021486,3]
[358816164,1745461838433,-420.89490186,0.00021564,2]
[358816165,1745461838444,-2811.25517819,0.000216,2]
[358816167,1745461838453,-210.87065806,0.00021717,2]
[358816169,1745461838463,-421.38624405,0.00021817,2]
[358816171,1745461838473,-500.0,0.00021917,2]
[358816173,1745461838482,-500.868303,0.00021917,2]
[358816175,1745461838491,-500.0,0.00021917,2]
[358816176,1745461838501,-151.891127,0.00021917,2]
[358816178,1745461838510,-510.81369818,0.00021917,2]
[358816180,1745461838520,-153.88679,0.00021917,2]
[358816182,1745461838529,-155.531473,0.00021917,2]
[358816184,1745461838539,-155.531473,0.00021917,2]
[358816186,1745461838548,-155.531473,0.00021917,2]
[358816188,1745461838557,-155.531473,0.00021917,2]
[358816190,1745461838566,-155.531473,0.00021917,2]
[358816192,1745461838575,-155.531473,0.00021917,2]
[358816193,1745461838585,-155.531473,0.00021917,2]
[358816195,1745461838597,-155.531473,0.00021917,2]
[358816197,1745461838621,-500.0,0.00021917,2]
[358816199,1745461838630,-500.0,0.00021917,2]
[358816201,1745461838640,-628.97,0.00021917,2]
[358816203,1745461838649,-500.0,0.00021917,2]
[358816205,1745461838659,-500.0,0.00021917,2]
[358816207,1745461838669,-500.0,0.00021917,2]
[358816209,1745461838679,-500.0,0.00021917,2]
[358816211,1745461838688,-500.0,0.00021917,2]
[358816213,1745461838698,-500.0,0.00021917,2]
[358816215,1745461838707,-503.25682339,0.00021917,2]
[358816217,1745461838717,-507.31977213,0.00021917,2]
[358816219,1745461838726,-500.0,0.00021917,2]
[358816221,1745461838737,-500.41639559,0.00021917,2]
[358816223,1745461838747,-915.27,0.00021917,2]
[358816225,1745461838756,-501.30738657,0.00021917,2]
[358816227,1745461838766,-500.0,0.00021917,2]
[358816229,1745461838775,-500.0,0.00021917,2]
[358816231,1745461838784,-500.0,0.00021917,2]
[358816233,1745461838794,-500.0,0.00021917,2]
[358816235,1745461838803,-500.0,0.00021917,2]
[358816237,1745461838813,-500.0,0.00021917,2]
[358816239,1745461838823,-500.0,0.00021917,2]
[358816240,1745461838832,-951.2,0.00021917,2]
[358816242,1745461838842,-500.0,0.00021917,2]
[358816244,1745461838853,-500.0,0.00021917,2]
[358816246,1745461838862,-507.57169943,0.00021917,2]
[358816248,1745461838871,-500.0,0.00021917,2]
[358816250,1745461838881,-500.0,0.00021917,2]
[358816252,1745461838891,-500.0,0.00021917,2]
[358816254,1745461838901,-734.28,0.00021917,2]
[358816256,1745461838910,-500.0,0.00021917,2]
[358816258,1745461838921,-875.37,0.00021917,2]
[358816260,1745461838932,-500.0,0.00021917,2]
[358816262,1745461838941,-419.63510708,0.00021917,2]
[358816264,1745461838951,-500.0,0.00021917,2]
[358816266,1745461838962,-500.0,0.00021917,2]
[358816267,1745461838972,-500.0,0.00021917,2]
[358816269,1745461838982,-887.35,0.00021917,2]
[358816271,1745461838993,-500.0,0.00021917,2]
[358816273,1745461839002,-500.0,0.00021917,2]
[358816275,1745461839012,-1000.0,0.00021917,2]
[358816277,1745461839021,-500.0,0.00021917,2]
[358816279,1745461839031,-500.0,0.00021917,2]
[358816281,1745461839041,-500.0,0.00021917,2]
[358816283,1745461839050,-500.0,0.00021917,2]
[358816285,1745461839060,-683.52,0.00021917,2]
[358816287,1745461839070,-402.24934952,0.00021917,2]
[358816289,1745461839080,-500.0,0.00021917,2]
[358816291,1745461839089,-500.0,0.00021917,2]
[358816293,1745461839099,-500.0,0.00021917,2]
[358816295,1745461839109,-500.0,0.00021917,2]
[358816297,1745461839118,-500.0,0.00021917,2]
[358816299,1745461839127,-500.0,0.00021917,2]
[358816301,1745461839136,-61.3142494,0.00021917,2]
[358816303,1745461839151,-438.6857506,0.00021917,2]
[358816305,1745461839161,-500.0,0.00021917,2]
[358816307,1745461839172,-500.0,0.00021917,2]
[358816309,1745461839182,-500.0,0.00021917,2]
[358816311,1745461839192,-507.00089983,0.00021917,2]
[358816313,1745461839201,-500.0,0.00021917,2]
[358816315,1745461839211,-500.0,0.00021917,2]
[358816317,1745461839220,-500.0,0.00021917,2]
[358816318,1745461839229,-151.2654259,0.00021917,2]
[358816320,1745461839239,-500.0,0.00021917,2]
[358816322,1745461839248,-500.0,0.00021917,2]
[358816324,1745461839257,-500.0,0.00021917,2]
[358816326,1745461839267,-500.0,0.00021917,2]
[358816328,1745461839276,-622.2911515,0.00021917,2]
[358816330,1745461839285,-500.0,0.00021917,2]
[358816332,1745461839295,-500.0,0.00021917,2]
[358816334,1745461839304,-500.0,0.00021917,2]
[358816336,1745461839315,-500.0,0.00021917,2]
[358816338,1745461839325,-500.0,0.00021917,2]
[358816340,1745461839336,-632.98,0.00021917,2]
[358816342,1745461839346,-500.0,0.00021917,2]
[358816343,1745461839356,-551.53329132,0.00021917,2]
[358816345,1745461839367,-500.0,0.00021917,2]
[358816347,1745461839380,-596.85,0.00021917,2]
[358816349,1745461839390,-500.0,0.00021917,2]
[358816351,1745461839399,-886.99,0.00021917,2]
[358816352,1745461839411,-500.0,0.00021917,2]
[358816362,1745461839421,-500.0,0.00021917,2]
[358816363,1745461839615,-500.0,0.00021917,2]
[358816364,1745461839625,-500.0,0.00021917,2]
[358816365,1745461839634,-412.15242743,0.00021917,2]
[358816366,1745461839643,-500.0,0.00021917,2]
[358816367,1745461839654,-500.0,0.00021917,2]
[358816368,1745461839663,-207.80972786,0.00021917,2]
[358816369,1745461839674,-500.0,0.00021917,2]
[358816370,1745461839683,-500.0,0.00021917,2]
[358816371,1745461839693,-500.0,0.00021917,2]
[358816372,1745461839703,-500.0,0.00021917,2]
[358816373,1745461839712,-500.0,0.00021917,2]
[358816374,1745461839723,-500.0,0.00021917,2]
[358816375,1745461839734,-577.16,0.00021917,2]
[358816376,1745461839744,-500.0,0.00021917,2]
[358816377,1745461839753,-500.0,0.00021917,2]
[358816378,1745461839763,-157.74643047,0.00021917,2]
[358816379,1745461839773,-500.0,0.00021917,2]
[358816380,1745461839782,-500.0,0.00021917,2]
[358816381,1745461839791,-500.0,0.00021917,2]
[358816382,1745461839801,-501.35932787,0.00021917,2]
[358816383,1745461839812,-500.0,0.00021917,2]
[358816384,1745461839822,-500.0,0.00021917,2]
[358816385,1745461839833,-500.0,0.00021917,2]
[358816387,1745461839843,-503.16372709,0.00021917,2]
[358816388,1745461839852,-500.0,0.00021917,2]
[358816389,1745461839862,-500.0,0.00021917,2]
[358816390,1745461839871,-500.0,0.00021917,2]
[358816391,1745461839880,-500.0,0.00021917,2]
[358816392,1745461839890,-1208.16,0.00021917,2]
[358816393,1745461839900,-500.0,0.00021917,2]
[358816394,1745461839910,-167.61489887,0.00021917,2]
[358816395,1745461839924,-500.0,0.00021917,2]
[358816396,1745461839933,-500.0,0.00021917,2]
[358816397,1745461839943,-500.0,0.00021917,2]
[358816398,1745461839952,-578.61,0.00021917,2]
[358816399,1745461839962,-500.0,0.00021917,2]
[358816400,1745461839971,-500.0,0.00021917,2]
[358816401,1745461839981,-363.74508062,0.00021917,2]
[358816402,1745461839990,-500.0,0.00021917,2]
[358816403,1745461840000,-693.22,0.00021917,2]
[358816404,1745461840010,-500.0,0.00021917,2]
[358816405,1745461840019,-585.29156312,0.00021917,2]
[358816406,1745461840029,-500.0,0.00021917,2]
[358816407,1745461840042,-500.0,0.00021917,2]
[358816408,1745461840052,-500.0,0.00021917,2]
[358816409,1745461840061,-500.0,0.00021917,2]
[358816410,1745461840070,-506.46987104,0.00021917,2]
[358816411,1745461840080,-704.28,0.00021917,2]
[358816412,1745461840090,-500.0,0.00021917,2]
[358816413,1745461840100,-500.0,0.00021917,2]
[358816414,1745461840110,-500.0,0.00021917,2]
[358816415,1745461840119,-500.0,0.00021917,2]
[358816416,1745461840129,-500.0,0.00021917,2]
[358816417,1745461840139,-500.0,0.00021917,2]
[358816418,1745461840148,-393.72612595,0.00021917,2]
[358816419,1745461840158,-503.87515408,0.00021917,2]
[358816420,1745461840169,-500.0,0.00021917,2]
[358816421,1745461840178,-500.0,0.00021917,2]
[358816422,1745461840188,-503.90102942,0.00021917,2]
[358816423,1745461840198,-901.99,0.00021917,2]
[358816424,1745461840207,-500.0,0.00021917,2]
[358816425,1745461840217,-500.0,0.00021917,2]
[358816426,1745461840227,-500.0,0.00021917,2]
[358816427,1745461840236,-500.0,0.00021917,2]
[358816428,1745461840246,-500.0,0.00021917,2]
[358816429,1745461840256,-500.0,0.00021917,2]
[358816430,1745461840265,-500.0,0.00021917,2]
[358816431,1745461840275,-500.0,0.00021917,2]
[358816432,1745461840285,-509.00609804,0.00021917,2]
[358816433,1745461840295,-507.07743674,0.00021917,2]
[358816434,1745461840306,-500.0,0.00021917,2]
[358816435,1745461840317,-293.03148179,0.00021917,2]
[358816436,1745461840329,-661.84,0.00021917,2]
[358816437,1745461840348,-500.0,0.00021917,2]
[358816438,1745461840359,-500.0,0.00021917,2]
[358816439,1745461840377,-500.0,0.00021917,2]
[358816440,1745461840394,-500.0,0.00021917,2]
[358816441,1745461840403,-504.98040982,0.00021917,2]
[358816442,1745461840413,-500.0,0.00021917,2]
[358816443,1745461840423,-846.66,0.00021917,2]
[358816444,1745461840432,-505.64438078,0.00021917,2]
[358816445,1745461840441,-500.0,0.00021917,2]
[358816446,1745461840451,-500.0,0.00021917,2]
[358816447,1745461840461,-500.0,0.00021917,2]
[358816448,1745461840471,-500.0,0.00021917,2]
[358816449,1745461840481,-1110.61,0.00021917,2]
[358816450,1745461840490,-500.0,0.00021917,2]
[358816451,1745461840499,-500.0,0.00021917,2]
[358816452,1745461840509,-500.0,0.00021917,2]
[358816453,1745461840519,-500.0,0.00021917,2]
[358816454,1745461840528,-500.0,0.00021917,2]
[358816455,1745461840537,-500.0,0.00021917,2]
[358816456,1745461840546,-500.0,0.00021917,2]
[358816457,1745461840556,-500.0,0.00021917,2]
[358816458,1745461840566,-500.0,0.00021917,2]
[358816459,1745461840575,-500.0,0.00021917,2]
[358816460,1745461840585,-500.0,0.00021917,2]
[358816461,1745461840594,-500.0,0.00021917,2]
[358816462,1745461840603,-500.0,0.00021917,2]
[358816463,1745461840613,-500.0,0.00021917,2]
[358816464,1745461840622,-500.0,0.00021917,2]
[358816465,1745461840632,-500.0,0.00021917,2]
[358816466,1745461840642,-503.58436032,0.00021917,2]
[358816467,1745461840652,-500.0,0.00021917,2]
[358816468,1745461840661,-500.0,0.00021917,2]
[358816469,1745461840671,-246.17,0.00021917,2]
[358816470,1745461840681,-500.0,0.00021917,2]
[358816471,1745461840690,-1107.09,0.00021917,2]
[358816472,1745461840700,-500.6784474,0.00021917,2]
[358816473,1745461840709,-500.0,0.00021917,2]
[358816475,1745461840719,-500.0,0.00021917,2]
[358816477,1745461840728,-500.0,0.00021917,2]
[358816478,1745461840738,-500.0,0.00021917,2]
[358816479,1745461840747,-365.21303866,0.00021917,2]
[358816480,1745461840756,-500.0,0.00021917,2]
[358816481,1745461840765,-500.0,0.00021917,2]
[358816482,1745461840775,-500.0,0.00021917,2]
[358816483,1745461840784,-500.0,0.00021917,2]
[358816484,1745461840794,-500.0,0.00021917,2]
[358816485,1745461840803,-500.0,0.00021917,2]
[358816486,1745461840813,-500.0,0.00021917,2]
[358816487,1745461840823,-500.0,0.00021917,2]
[358816488,1745461840833,-500.0,0.00021917,2]
[358816489,1745461840842,-208.73753372,0.00021917,2]
[358816490,1745461840852,-500.0,0.00021917,2]
[358816491,1745461840861,-500.0,0.00021917,2]
[358816492,1745461840871,-500.0,0.00021917,2]
[358816493,1745461840880,-500.0,0.00021917,2]
[358816494,1745461840890,-606.78164552,0.00021917,2]
[358816495,1745461840899,-502.40224287,0.00021917,2]
[358816496,1745461840909,-500.0,0.00021917,2]
[358816497,1745461840918,-500.0,0.00021917,2]
[358816498,1745461840928,-500.0,0.00021917,2]
[358816499,1745461840938,-504.44519931,0.00021917,2]
[358816500,1745461840948,-500.0,0.00021917,2]
[358816501,1745461840958,-500.0,0.00021917,2]
[358816502,1745461840967,-585.03,0.00021917,2]
[358816503,1745461840977,-613.57,0.00021917,2]
[358816504,1745461840987,-729.58,0.00021917,2]
[358816505,1745461840997,-569.6,0.00021917,2]
[358816506,1745461841006,-502.57285542,0.00021917,2]
[358816508,1745461841015,-500.0,0.00021917,2]
[358816509,1745461841025,-500.0,0.00021917,2]
[358816510,1745461841034,-500.0,0.00021917,2]
[358816511,1745461841043,-500.0,0.00021917,2]
[358816512,1745461841053,-500.0,0.00021917,2]
[358816513,1745461841062,-500.0,0.00021917,2]
[358816514,1745461841072,-515.25885162,0.00021917,2]
[358816515,1745461841082,-506.51508837,0.00021917,2]
[358816516,1745461841091,-500.0,0.00021917,2]
[358816517,1745461841102,-501.70978019,0.00021917,2]
[358816518,1745461841111,-500.0,0.00021917,2]
[358816519,1745461841121,-500.0,0.00021917,2]
[358816520,1745461841130,-500.0,0.00021917,2]
[358816521,1745461841139,-500.0,0.00021917,2]
[358816522,1745461841148,-300.0,0.00021917,2]
[358816523,1745461841158,-500.0,0.00021917,2]
[358816524,1745461841167,-734.09,0.00021917,2]
[358816525,1745461841176,-500.0,0.00021917,2]
[358816526,1745461841185,-500.0,0.00021917,2]
[358816527,1745461841195,-802.02,0.00021917,2]
[358816528,1745461841204,-500.0,0.00021917,2]
[358816529,1745461841214,-500.0,0.00021917,2]
[358816530,1745461841224,-500.0,0.00021917,2]
[358816531,1745461841233,-500.0,0.00021917,2]
[358816532,1745461841243,-500.0,0.00021917,2]
[358816533,1745461841252,-500.0,0.00021917,2]
[358816534,1745461841261,-500.0,0.00021917,2]
[358816535,1745461841270,-500.0,0.00021917,2]
[358816536,1745461841280,-500.0,0.00021917,2]
[358816537,1745461841289,-234.47772711,0.00021917,2]
[358816538,1745461841298,-500.0,0.00021917,2]
[358816539,1745461841307,-500.0,0.00021917,2]
[358816540,1745461841316,-2156.6,0.00021917,2]
[358816541,1745461841325,-500.0,0.00021917,2]
[358816542,1745461841335,-500.0,0.00021917,2]
[358816543,1745461841344,-500.0,0.00021917,2]
[358816544,1745461841353,-500.0,0.00021917,2]
[358816545,1745461841363,-500.0,0.00021917,2]
[358816546,1745461841376,-500.0,0.00021917,2]
[358816547,1745461841385,-500.0,0.00021917,2]
[358816548,1745461841394,-500.0,0.00021917,2]
[358816549,1745461841404,-533.97,0.00021917,2]
[358816550,1745461841414,-500.0,0.00021917,2]
[358816551,1745461841423,-500.0,0.00021917,2]
[358816552,1745461841432,-500.0,0.00021917,2]
[358816553,1745461841442,-500.0,0.00021917,2]
[358816554,1745461841453,-500.0,0.00021917,2]
[358816555,1745461841463,-500.0,0.00021917,2]
[358816556,1745461841473,-500.0,0.00021917,2]
[358816557,1745461841482,-500.0,0.00021917,2]
[358816558,1745461841491,-500.0,0.00021917,2]
[358816559,1745461841501,-1411.82,0.00021917,2]
[358816560,1745461841511,-645.34,0.00021917,2]
[358816561,1745461841520,-506.02631522,0.00021917,2]
[358816562,1745461841530,-505.51136482,0.00021917,2]
[358816563,1745461841540,-504.0281952,0.00021917,2]
[358816564,1745461841549,-500.0,0.00021917,2]
[358816565,1745461841560,-500.0,0.00021917,2]
[358816566,1745461841569,-500.0,0.00021917,2]
[358816567,1745461841579,-500.0,0.00021917,2]
[358816568,1745461841588,-676.44,0.00021917,2]
[358816569,1745461841598,-500.0,0.00021917,2]
[358816570,1745461841607,-1264.27,0.00021917,2]
[358816571,1745461841618,-582.88,0.00021917,2]
[358816572,1745461841627,-515.34,0.00021917,2]
[358816573,1745461841637,-500.0,0.00021917,2]
[358816574,1745461841647,-500.0,0.00021917,2]
[358816575,1745461841656,-1888.1,0.00021917,2]
[358816576,1745461841667,-500.0,0.00021917,2]
[358816577,1745461841677,-500.0,0.00021917,2]
[358816578,1745461841686,-500.0,0.00021917,2]
[358816579,1745461841696,-500.0,0.00021917,2]
[358816580,1745461841706,-3028.0,0.00021917,2]
[358816581,1745461841716,-500.0,0.00021917,2]
[358816582,1745461841726,-500.0,0.00021917,2]
[358816583,1745461841737,-500.0,0.00021917,2]
[358816584,1745461841747,-500.0,0.00021917,2]
[358816585,1745461841757,-1341.72,0.00021917,2]
[358816586,1745461841768,-500.0,0.00021917,2]
[358816587,1745461841779,-688.45,0.00021917,2]
[358816588,1745461841789,-500.0,0.00021917,2]
[358816589,1745461841799,-500.0,0.00021917,2]
[358816590,1745461841809,-501.2003554,0.00021917,2]
[358816591,1745461841819,-1167.21,0.00021917,2]
[358816592,1745461841828,-500.0,0.00021917,2]
[358816593,1745461841839,-1186.54,0.00021917,2]
[358816594,1745461841849,-500.0,0.00021917,2]
[358816595,1745461841859,-500.0,0.00021917,2]
[358816596,1745461841869,-500.0,0.00021917,2]
[358816597,1745461841879,-371.4452492,0.00021917,2]
[358816598,1745461841889,-500.0,0.00021917,2]
[358816599,1745461841899,-500.0,0.00021917,2]
[358816600,1745461841909,-500.0,0.00021917,2]
[358816601,1745461841920,-669.04,0.00021917,2]
[358816602,1745461841930,-500.0,0.00021917,2]
[358816603,1745461841940,-508.9488163,0.00021917,2]
[358816604,1745461841950,-1171.55,0.00021917,2]
[358816605,1745461841960,-500.0,0.00021917,2]
[358816606,1745461841971,-500.0,0.00021917,2]
[358816607,1745461841982,-500.0,0.00021917,2]
[358816608,1745461841992,-500.0,0.00021917,2]
[358816609,1745461842003,-500.0,0.00021917,2]
[358816610,1745461842012,-500.0,0.00021917,2]
[358816611,1745461842022,-500.0,0.00021917,2]
[358816612,1745461842033,-500.0,0.00021917,2]
[358816613,1745461842042,-964.31,0.00021917,2]
[358816614,1745461842053,-500.0,0.00021917,2]
[358816615,1745461842064,-506.83902322,0.00021917,2]
[358816616,1745461842074,-500.0,0.00021917,2]
[358816617,1745461842083,-500.0,0.00021917,2]
[358816618,1745461842094,-919.41,0.00021917,2]
[358816619,1745461842104,-500.0,0.00021917,2]
[358816620,1745461842114,-386.90797935,0.00021917,2]
[358816621,1745461842124,-700.63,0.00021917,2]
[358816622,1745461842134,-280.53884047,0.00021917,2]
[358816623,1745461842144,-500.0,0.00021917,2]
[358816624,1745461842154,-500.0,0.00021917,2]
[358816625,1745461842164,-1166.76,0.00021917,2]
[358816626,1745461842174,-500.0,0.00021917,2]
[358816627,1745461842184,-500.0,0.00021917,2]
[358816628,1745461842194,-500.0,0.00021917,2]
[358816629,1745461842345,-502.76787948,0.00021917,2]
[358816630,1745461842356,-500.0,0.00021917,2]
[358816631,1745461842366,-500.0,0.00021917,2]
[358816632,1745461842379,-616.83,0.00021917,2]
[358816633,1745461842389,-1147.58,0.00021917,2]
[358816634,1745461842399,-1335.29,0.00021917,2]
[358816635,1745461842408,-507.56621708,0.00021917,2]
[358816636,1745461842419,-500.0,0.00021917,2]
[358816637,1745461842429,-796.48,0.00021917,2]
[358816638,1745461842440,-500.0,0.00021917,2]
[358816639,1745461842451,-500.0,0.00021917,2]
[358816640,1745461842461,-500.0,0.00021917,2]
[358816641,1745461842471,-1304.95,0.00021917,2]
[358816642,1745461842481,-500.0,0.00021917,2]
[358816643,1745461842490,-504.75730629,0.00021917,2]
[358816644,1745461842500,-500.0,0.00021917,2]
[358816645,1745461842509,-961.07,0.00021917,2]
[358816646,1745461842519,-500.0,0.00021917,2]
[358816647,1745461842529,-500.0,0.00021917,2]
[358816648,1745461842538,-628.75834037,0.00021917,2]
[358816649,1745461842548,-500.0,0.00021917,2]
[358816650,1745461842558,-500.0,0.00021917,2]
[358816651,1745461842568,-500.0,0.00021917,2]
[358816652,1745461842578,-500.0,0.00021917,2]
[358816653,1745461842588,-513.29,0.00021917,2]
[358816654,1745461842599,-557.0,0.00021917,2]
[358816655,1745461842609,-570.56674627,0.00021917,2]
[358816656,1745461842619,-500.0,0.00021917,2]
[358816657,1745461842628,-506.20712776,0.00021917,2]
[358816658,1745461842639,-721.95,0.00021917,2]
[358816659,1745461842649,-500.0,0.00021917,2]
[358816660,1745461842659,-500.0,0.00021917,2]
[358816661,1745461842670,-500.0,0.00021917,2]
[358816662,1745461842681,-500.0,0.00021917,2]
[358816663,1745461842690,-500.0,0.00021917,2]
[358816665,1745461842700,-500.0,0.00021917,2]
[358816666,1745461842709,-500.0,0.00021917,2]
[358816667,1745461842719,-518.46,0.00021917,2]
[358816668,1745461842729,-500.0,0.00021917,2]
[358816669,1745461842738,-846.81,0.00021917,2]
[358816670,1745461842748,-500.0,0.00021917,2]
[358816672,1745461842758,-500.0,0.00021917,2]
[358816673,1745461842769,-500.0,0.00021917,2]
[358816674,1745461842779,-500.0,0.00021917,2]
[358816675,1745461842789,-500.0,0.00021917,2]
[358816676,1745461842799,-561.55,0.00021917,2]
[358816677,1745461842809,-927.72,0.00021917,2]
[358816678,1745461842819,-1448.43,0.00021917,2]
[358816679,1745461842829,-500.0,0.00021917,2]
[358816680,1745461842839,-1168.42,0.00021917,2]
[358816681,1745461842848,-500.0,0.00021917,2]
[358816682,1745461842858,-500.0,0.00021917,2]
[358816683,1745461842868,-503.21226093,0.00021917,2]
[358816684,1745461842878,-500.0,0.00021917,2]
[358816685,1745461842888,-991.06,0.00021917,2]
[358816686,1745461842898,-1029.74,0.00021917,2]
[358816687,1745461842908,-500.0,0.00021917,2]
[358816688,1745461842919,-500.0,0.00021917,2]
[358816689,1745461842929,-500.0,0.00021917,2]
[358816690,1745461842939,-523.45625992,0.00021917,2]
[358816691,1745461842949,-539.78,0.00021917,2]
[358816692,1745461842959,-500.0,0.00021917,2]
[358816693,1745461842969,-500.0,0.00021917,2]
[358816694,1745461842978,-500.0,0.00021917,2]
[358816695,1745461842988,-500.0,0.00021917,2]
[358816696,1745461842998,-738.58,0.00021917,2]
[358816697,1745461843009,-500.0,0.00021917,2]
[358816698,1745461843019,-500.0,0.00021917,2]
[358816699,1745461843029,-500.0,0.00021917,2]
[358816700,1745461843039,-957.82,0.00021917,2]
[358816701,1745461843049,-686.72,0.00021917,2]
[358816702,1745461843059,-500.0,0.00021917,2]
[358816703,1745461843069,-1730.72,0.00021917,2]
[358816704,1745461843078,-500.0,0.00021917,2]
[358816705,1745461843088,-500.0,0.00021917,2]
[358816706,1745461843097,-500.0,0.00021917,2]
[358816707,1745461843106,-500.0,0.00021917,2]
[358816708,1745461843116,-1903.07,0.00021917,2]
[358816709,1745461843126,-500.0,0.00021917,2]
[358816710,1745461843135,-500.0,0.00021917,2]
[358816711,1745461843144,-474.28460488,0.00021917,2]
[358816712,1745461843154,-500.0,0.00021917,2]
[358816713,1745461843163,-704.67,0.00021917,2]
[358816714,1745461843173,-500.0,0.00021917,2]
[358816715,1745461843183,-1259.06,0.00021917,2]
[358816716,1745461843192,-565.62,0.00021917,2]
[358816717,1745461843202,-500.0,0.00021917,2]
[358816718,1745461843211,-500.0,0.00021917,2]
[358816719,1745461843221,-500.0,0.00021917,2]
[358816720,1745461843230,-500.0,0.00021917,2]
[358816721,1745461843240,-500.0,0.00021917,2]
[358816722,1745461843249,-500.0,0.00021917,2]
[358816723,1745461843259,-500.0,0.00021917,2]
[358816724,1745461843268,-944.66,0.00021917,2]
[358816725,1745461843278,-500.0,0.00021917,2]
[358816726,1745461843288,-1255.82,0.00021917,2]
[358816727,1745461843298,-641.40019076,0.00021917,2]
[358816728,1745461843308,-500.0,0.00021917,2]
[358816729,1745461843318,-500.0,0.00021917,2]
[358816730,1745461843328,-500.0,0.00021917,2]
[358816731,1745461843338,-500.0,0.00021917,2]
[358816732,1745461843348,-629.39,0.00021917,2]
[358816733,1745461843358,-1543.44,0.00021917,2]
[358816734,1745461843368,-500.0,0.00021917,2]
[358816735,1745461843385,-500.0,0.00021917,2]
[358816736,1745461843395,-500.0,0.00021917,2]
[358816737,1745461843407,-500.0,0.00021917,2]
[358816738,1745461843419,-500.0,0.00021917,2]